[Event "Allsvenskan Div II 5 2023/2024: SS Manhem IV - Gotaverken-Lundby SK"]
[Site "Goteborgs schackcentrum, Vegatan 20, Gothenburg, Sweden"]
[Date "2023.10.22"]
[Round "1.5"]
[White "Liljegren, Ake"]
[Black "Mellbin, Bo-Goran"]
[Result "0-1"]
[TimeControl "90 minutes for 40 moves + 30 minutes for the rest of the game + 30 seconds per move from move one."]
[WhiteFideId "1732005"]
[BlackFideId "1717952"]
[WhiteElo "1700"]
[BlackElo "1628"]

1. e4 {[%clk 01:30:55]} {[%emt 00:00:05]} c5 {[%clk 01:30:38]} {[%emt
00:00:22]} 2. Nf3 {[%clk 01:31:14]} {[%emt 00:00:11]} Nc6 {[%clk 01:30:40]}
{[%emt 00:00:28]} 3. Bc4 {[%clk 01:30:56]} {[%emt 00:00:48]} e6 {[%clk
01:30:30]} {[%emt 00:00:41]} 4. c3 {[%clk 01:31:01]} {[%emt 00:00:25]} Na5
{[%clk 01:28:33]} {[%emt 00:02:26]} 5. Bb5 {[%clk 01:31:01]} {[%emt 00:00:30]}
a6 {[%clk 01:28:13]} {[%emt 00:00:50]} 6. Ba4 {[%clk 01:31:19]} {[%emt
00:00:12]} b5 {[%clk 01:27:59]} {[%emt 00:00:43]} 7. Bc2 {[%clk 01:30:49]}
{[%emt 00:01:00]} Be7 {[%clk 01:22:48]} {[%emt 00:05:42]} 8. O-O {[%clk
01:30:06]} {[%emt 00:01:13]} d6 {[%clk 01:18:39]} {[%emt 00:04:39]} 9. d4
{[%clk 01:28:45]} {[%emt 00:01:50]} Bb7 {[%clk 01:10:07]} {[%emt 00:09:02]} 10.
Bd3 {[%clk 01:25:49]} {[%emt 00:03:27]} c4 {[%clk 01:09:28]} {[%emt 00:01:10]}
11. Bc2 {[%clk 01:26:07]} {[%emt 00:00:11]} Nf6 {[%clk 01:03:21]} {[%emt
00:06:38]} 12. Re1 {[%clk 01:25:54]} {[%emt 00:00:43]} O-O {[%clk 00:57:26]}
{[%emt 00:06:25]} 13. h3 {[%clk 01:24:54]} {[%emt 00:01:30]} h6 {[%clk
00:53:18]} {[%emt 00:04:38]} 14. Nh2 {[%clk 01:23:50]} {[%emt 00:01:34]} e5
{[%clk 00:47:59]} {[%emt 00:05:48]} 15. Nd2 {[%clk 01:22:01]} {[%emt 00:02:19]}
Nh7 {[%clk 00:44:24]} {[%emt 00:04:05]} 16. Ndf1 {[%clk 01:19:55]} {[%emt
00:02:38]} Bg5 {[%clk 00:41:27]} {[%emt 00:03:26]} 17. Ng4 {[%clk 01:16:31]}
{[%emt 00:03:53]} Bxc1 {[%clk 00:37:55]} {[%emt 00:04:01]} 18. Rxc1 {[%clk
01:16:47]} {[%emt 00:00:15]} Bc8 {[%clk 00:36:28]} {[%emt 00:01:57]} 19. Nfe3
{[%clk 01:09:15]} {[%emt 00:08:03]} h5 {[%emt 00:02:33]} 20. Nh2 {[%clk
01:08:28]} {[%emt 00:01:15]} g6 {[%clk 00:34:06]} {[%emt 00:00:51]} 21. Nf3
{[%clk 01:06:12]} {[%emt 00:02:46]} Ng5 {[%clk 00:31:31]} {[%emt 00:03:04]} 22.
Nd5 {[%clk 01:03:16]} {[%emt 00:03:26]} Ra7 {[%clk 00:26:49]} {[%emt 00:05:12]}
23. Re3 {[%clk 01:01:39]} {[%emt 00:02:08]} Nxf3+ {[%clk 00:19:55]} {[%emt
00:07:23]} 24. Rxf3 {[%clk 01:00:13]} {[%emt 00:01:55]} f6 {[%clk 00:17:55]}
{[%emt 00:02:30]} 25. Rg3 {[%clk 00:59:09]} {[%emt 00:01:35]} Rg7 {[%clk
00:18:07]} {[%emt 00:00:17]} 26. Qe2 {[%clk 00:54:31]} {[%emt 00:05:09]} h4
{[%clk 00:18:03]} {[%emt 00:00:34]} 27. Re3 {[%clk 00:53:34]} {[%emt 00:01:26]}
Nc6 {[%clk 00:18:05]} {[%emt 00:00:30]} 28. Rd1 {[%clk 00:52:14]} {[%emt
00:01:49]} f5 {[%clk 00:15:39]} {[%emt 00:02:56]} 29. exf5 {[%clk 00:51:05]}
{[%emt 00:01:39]} gxf5 {[%clk 00:15:38]} {[%emt 00:00:32]} 30. dxe5 {[%clk
00:49:59]} {[%emt 00:01:36]} dxe5 {[%clk 00:12:41]} {[%emt 00:03:27]} 31. f4
{[%clk 00:42:07]} {[%emt 00:08:22]} e4 {[%clk 00:09:20]} {[%emt 00:03:51]} 32.
Qh5 {[%clk 00:39:20]} {[%emt 00:03:17]} Be6 {[%emt 00:02:39]} 33. Nb4 {[%clk
00:38:55]} {[%emt 00:00:52]} Qb6 {[%clk 00:04:49]} {[%emt 00:02:54]} 34. Rde1
{[%clk 00:36:39]} {[%emt 00:02:46]} Nxb4 {[%clk 00:04:57]} {[%emt 00:00:23]} 35.
cxb4 {[%clk 00:37:05]} {[%emt 00:00:03]} Qd8 {[%clk 00:04:58]} {[%emt
00:00:27]} 36. Rd1 {[%clk 00:35:31]} {[%emt 00:02:05]} Qe7 {[%clk 00:04:14]}
{[%emt 00:01:15]} 37. a3 {[%clk 00:35:32]} {[%emt 00:00:29]} Rh7 {[%clk
00:03:02]} {[%emt 00:01:43]} 38. Qe2 {[%clk 00:33:23]} {[%emt 00:02:37]} Rg7
{[%clk 00:03:14]} {[%emt 00:00:19]} 39. Bxe4 {[%clk 00:33:01]} {[%emt
00:00:52]} fxe4 {[%clk 00:03:06]} {[%emt 00:00:38]} 40. Rxe4 {[%clk 00:33:19]}
{[%emt 00:00:12]} Qa7+ {[%clk 00:03:19]} {[%emt 00:00:16]} 41. Kh2 {[%clk
00:33:17]} {[%emt 00:00:32]} Bf5 {[%clk 00:02:20]} {[%emt 00:01:30]} 42. Re5
{[%clk 00:28:48]} {[%emt 00:04:59]} Bd3 {[%clk 00:01:36]} {[%emt 00:01:13]} 43.
Qh5 {[%clk 00:23:12]} {[%emt 00:06:06]} Qf2 {[%clk 00:29:24]} {[%emt 00:02:43]}
44. Qf3 {[%clk 00:50:41]} {[%emt 00:03:00]} Qxf3 {[%clk 00:27:49]} {[%emt
00:02:06]} 45. gxf3 {[%clk 00:50:48]} {[%emt 00:00:24]} Rxf4 {[%clk 00:28:12]}
{[%emt 00:00:06]} 46. Re8+ {[%clk 00:49:30]} {[%emt 00:01:48]} Kh7 {[%clk
00:27:53]} {[%emt 00:00:48]} 47. Rde1 {[%clk 00:49:23]} {[%emt 00:00:38]} Rxf3
{[%clk 00:27:23]} {[%emt 00:01:00]} 48. R1e5 {[%clk 00:48:42]} {[%emt
00:01:10]} Bf5 {[%clk 00:20:27]} {[%emt 00:07:25]} 49. Ra8 {[%clk 00:48:31]}
{[%emt 00:00:43]} Rxh3# {[%emt 00:00:15]} 0-1